bitfinex/quotes_BTCUSD_20240901
["timestamp","ask_amount","ask_price","bid_price","bid_amount"]
[1725215605045,0.170201,58754.0,58729.0,0.07683591]
[1725215605046,0.510655,58748.0,58747.0,0.0794]
[1725215605507,0.851092,58748.0,58747.0,0.0794]
[1725215605710,0.851135,58745.0,58744.0,0.1779]
[1725215605930,0.170225,58746.0,58744.0,0.1779]
[1725215606363,0.170225,58746.0,58744.0,0.21512854]
[1725215606592,0.510658,58748.0,58744.0,0.21512854]
[1725215606829,0.170219,58748.0,58744.0,0.21512854]
[1725215607051,0.02671042,58750.0,58744.0,0.21512854]
[1725215607260,0.02671042,58750.0,58744.0,0.1779]
[1725215607261,0.170227,58745.0,58744.0,0.1779]
[1725215607881,0.170237,58742.0,58739.0,0.0985]
[1725215608123,0.340454,58745.0,58739.0,0.0985]
[1725215608124,0.170234,58743.0,58739.0,0.0985]
[1725215608569,0.170241,58740.0,58739.0,0.0985]
[1725215608998,0.170241,58740.0,58739.0,0.15275404]
[1725215609414,0.510724,58740.0,58739.0,0.0985]
[1725215610252,0.170241,58740.0,58739.0,0.0985]
[1725215610465,0.340472,58742.0,58739.0,0.0985]
[1725215610466,0.17024,58741.0,58739.0,0.0985]
[1725215610885,0.340472,58742.0,58739.0,0.0985]
[1725215610886,0.170241,58740.0,58739.0,0.0985]
[1725215611119,0.851207,58740.0,58739.0,0.0985]
[1725215611335,0.005,58762.0,58734.0,0.0993987]
[1725215611336,0.170256,58735.0,58734.0,0.0993987]
[1725215611553,0.170256,58735.0,58734.0,0.0008987]
[1725215611554,0.43144953,58735.0,58734.0,0.0008987]
[1725215611830,1.21397353,58735.0,58734.0,0.0008987]
[1725215612088,1.33697353,58735.0,58734.0,0.0008987]
[1725215612536,0.87196153,58735.0,58734.0,0.0008987]
[1725215612763,0.53144953,58735.0,58734.0,0.0008987]
[1725215612984,0.87196153,58735.0,58734.0,0.0008987]
[1725215613930,0.270256,58735.0,58734.0,0.1032987]
[1725215614182,0.610768,58735.0,58734.0,0.1032987]
[1725215614449,1.291792,58735.0,58734.0,0.0008987]
[1725215614704,1.388992,58735.0,58734.0,0.0008987]
[1725215614951,1.411992,58735.0,58734.0,0.0008987]
[1725215615904,1.314792,58735.0,58734.0,0.0008987]
[1725215618286,1.34151262,58735.0,58734.0,0.0008987]
[1725215620862,1.34151262,58735.0,58702.0,0.07500317]
[1725215620863,0.01,58705.0,58702.0,0.07500317]
[1725215621100,0.01,58705.0,58700.0,0.0009009]
[1725215621101,0.170343,58705.0,58700.0,0.0009009]
[1725215621362,0.951715,58705.0,58700.0,0.0009009]
[1725215621613,1.31913536,58705.0,58700.0,0.0009009]
[1725215621828,1.292401,58705.0,58700.0,0.0009009]
[1725215622068,1.315401,58705.0,58700.0,0.0009009]
[1725215623380,0.974715,58705.0,58700.0,0.0009009]
[1725215623583,0.634029,58705.0,58700.0,0.0009009]
[1725215623794,0.974715,58705.0,58700.0,0.0009009]
[1725215624233,1.0726865,58705.0,58700.0,0.0009009]
[1725215624453,0.974715,58705.0,58700.0,0.0009009]
[1725215624688,0.634029,58705.0,58700.0,0.0009009]
[1725215626256,0.12673302,58705.0,58704.0,0.0989009]
[1725215626478,0.00340501,58706.0,58704.0,0.0989009]
[1725215626701,0.00840501,58715.0,58704.0,0.0989009]
[1725215626918,0.00840501,58715.0,58704.0,0.0009009]
[1725215626919,0.340686,58705.0,58704.0,0.0009009]
[1725215627149,0.170343,58705.0,58704.0,0.0009009]
[1725215627605,0.85512001,58705.0,58704.0,0.0009009]
[1725215627838,0.85512001,58705.0,58697.0,0.0009009]
[1725215627839,0.015,58698.0,58697.0,0.0009009]
[1725215628070,0.015,58698.0,58675.0,0.008987]
[1725215628071,0.18038,58692.0,58675.0,0.008987]
[1725215628277,1.202828,58684.0,58675.0,0.008987]
[1725215628512,2.561379,58684.0,58675.0,0.008987]
[1725215628976,2.21849849,58684.0,58675.0,0.008987]
[1725215629191,2.30239849,58684.0,58675.0,0.008987]
[1725215629412,2.3291422,58684.0,58675.0,0.008987]
[1725215629632,3.2455782,58684.0,58675.0,0.008987]
[1725215629851,2.0396272,58684.0,58675.0,0.008987]
[1725215630289,1.53067171,58684.0,58675.0,0.008987]
[1725215630508,1.53567171,58684.0,58675.0,0.008987]
[1725215630720,1.5919792,58684.0,58675.0,0.008987]
[1725215630956,1.69536963,58684.0,58675.0,0.008987]
[1725215631167,1.53567171,58684.0,58675.0,0.008987]
[1725215631377,1.5919792,58684.0,58675.0,0.008987]
[1725215632686,1.5869792,58684.0,58675.0,0.008987]
[1725215632907,0.97502,58684.0,58675.0,0.008987]
[1725215633325,1.315828,58684.0,58675.0,0.008987]
[1725215633539,1.4484108,58684.0,58675.0,0.008987]
[1725215635505,0.97502,58684.0,58675.0,0.008987]
[1725215635741,0.97502,58684.0,58680.0,0.0968]
[1725215636039,0.97502,58684.0,58671.0,0.170841]
[1725215636040,0.005,58662.0,58661.0,0.00902]
[1725215636248,0.005,58662.0,58654.0,0.00902]
[1725215636249,0.516464,58655.0,58654.0,0.00902]
[1725215636460,1.4352114,58655.0,58654.0,0.00902]
[1725215636671,1.8991874,58655.0,58654.0,0.00902]
[1725215636881,1.662392,58655.0,58654.0,0.00902]
[1725215637386,1.790058,58655.0,58654.0,0.00902]
[1725215637532,1.326416,58655.0,58654.0,0.00902]
[1725215637755,1.87795,58655.0,58654.0,0.00902]
[1725215637976,1.92987472,58655.0,58654.0,0.00902]
[1725215638188,2.04650164,58655.0,58654.0,0.00902]
[1725215638655,1.672392,58655.0,58654.0,0.00902]
[1725215638865,1.81008019,58655.0,58654.0,0.00902]
[1725215639537,1.35317819,58655.0,58654.0,0.00902]
[1725215639785,1.34817819,58655.0,58654.0,0.00902]
[1725215640000,1.35317819,58655.0,58654.0,0.00902]
[1725215640208,1.49702601,58655.0,58654.0,0.00902]
[1725215640417,1.35317819,58655.0,58654.0,0.00902]
[1725215640881,1.52673119,58655.0,58654.0,0.00902]
[1725215641955,1.35317819,58655.0,58654.0,0.00902]
[1725215642174,1.321416,58655.0,58654.0,0.00902]
[1725215643071,0.0838,58663.0,58654.0,0.00902]
[1725215643072,0.005,58665.0,58654.0,0.00902]
[1725215643287,0.340976,58655.0,58654.0,0.00902]
[1725215643518,0.85244,58655.0,58654.0,0.00902]
[1725215645049,0.95244,58655.0,58654.0,0.00902]
[1725215645510,1.32017276,58655.0,58654.0,0.00902]
[1725215645739,1.34317276,58655.0,58654.0,0.00902]
[1725215646188,1.316416,58655.0,58654.0,0.00902]
[1725215646440,1.34317324,58655.0,58654.0,0.00902]
[1725215647879,1.47799056,58655.0,58654.0,0.00902]
[1725215649537,1.34317324,58655.0,58654.0,0.00902]
[1725215650764,0.63822124,58655.0,58654.0,0.00902]
[1725215652002,0.97919724,58655.0,58654.0,0.00902]
[1725215652700,0.95244,58655.0,58654.0,0.00902]
[1725215653444,0.611464,58655.0,58654.0,0.00902]
[1725215653921,0.1,58655.0,58654.0,0.11762]
[1725215654186,0.17469801,58660.0,58655.0,0.0775]
[1725215654418,0.170482,58657.0,58655.0,0.0775]
[1725215654651,0.1,58656.0,58655.0,0.0775]
[1725215654901,0.1,58656.0,58655.0,0.697564]
[1725215655395,0.000819,58660.0,58655.0,0.527076]
[1725215655684,0.000819,58660.0,58659.0,0.170476]
[1725215655914,0.000819,58660.0,58659.0,0.620029]
[1725215656387,0.000819,58660.0,58659.0,0.697529]
[1725215656853,0.000819,58660.0,58659.0,1.038482]
[1725215657344,0.000819,58660.0,58659.0,0.697529]
[1725215658021,0.000819,58660.0,58659.0,1.038482]
[1725215658240,0.000819,58660.0,58659.0,0.697529]
[1725215658463,0.000819,58660.0,58659.0,0.356576]
[1725215658700,0.171292,58660.0,58659.0,0.1861]
[1725215658927,0.000819,58660.0,58659.0,0.1861]
[1725215659141,0.171292,58660.0,58659.0,0.1861]
[1725215660008,0.171292,58660.0,58654.0,0.11352]
[1725215660009,0.170488,58655.0,58654.0,0.11352]
[1725215660224,0.511464,58655.0,58654.0,0.00902]
[1725215660536,1.193416,58655.0,58654.0,0.00902]
[1725215660731,1.32017024,58655.0,58654.0,0.00902]
[1725215661169,1.31947814,58655.0,58654.0,0.00902]
[1725215662981,1.3157239,58655.0,58654.0,0.00902]
[1725215663699,0.9517479,58655.0,58654.0,0.00902]
[1725215664674,0.6107719,58655.0,58654.0,0.00902]
[1725215664897,0.2697959,58655.0,58654.0,0.11352]
[1725215665122,0.6107719,58655.0,58654.0,0.19502]
[1725215665334,0.2697959,58655.0,58654.0,0.19502]
[1725215665549,0.1,58655.0,58654.0,0.19502]
[1725215665822,0.340953,58659.0,58654.0,0.19502]
[1725215665823,0.170486,58656.0,58654.0,0.19502]
[1725215666289,0.1,58655.0,58654.0,0.19502]
[1725215666994,0.270488,58655.0,58654.0,0.19502]
[1725215667220,0.12675342,58655.0,58654.0,0.19502]
[1725215667452,0.02675342,58655.0,58654.0,0.365511]
[1725215667664,0.02675342,58655.0,58654.0,0.19502]
[1725215667926,0.02675342,58655.0,58654.0,0.365511]
[1725215668140,0.02675342,58655.0,58654.0,0.7808114]
[1725215668385,0.02675342,58655.0,58654.0,0.365511]
[1725215668599,0.53821742,58655.0,58654.0,0.19502]
[1725215669037,0.53821742,58655.0,58654.0,0.00902]
[1725215669038,0.87919342,58655.0,58654.0,0.00902]
[1725215669253,0.97919342,58655.0,58654.0,0.00902]
[1725215669466,0.63821742,58655.0,58654.0,0.00902]
[1725215670193,0.97919342,58655.0,58654.0,0.00902]
[1725215670623,0.29724142,58655.0,58654.0,0.00902]
[1725215670833,0.12675342,58655.0,58654.0,0.11352]
[1725215671286,0.02675342,58655.0,58654.0,0.11352]
[1725215671522,0.12675342,58655.0,58654.0,0.284011]
[1725215671750,0.02675342,58655.0,58654.0,0.365511]
[1725215672199,0.02675342,58655.0,58654.0,0.19502]
[1725215672672,0.19724142,58655.0,58654.0,0.19502]
[1725215672911,0.170484,58657.0,58654.0,0.19502]
[1725215673129,0.170485,58656.0,58654.0,0.19502]
[1725215673362,0.170488,58655.0,58654.0,0.19502]
[1725215674123,0.511451,58657.0,58654.0,0.19502]
[1725215674369,0.170486,58656.0,58654.0,0.19502]
[1725215675314,0.170482,58658.0,58654.0,0.42053584]
[1725215675552,0.1,58659.0,58654.0,0.42053584]
[1725215675553,0.1,58659.0,58655.0,0.170487]
[1725215675779,0.270477,58659.0,58654.0,0.19502]
[1725215676008,0.17048,58658.0,58654.0,0.19502]
[1725215676274,0.1,58659.0,58654.0,0.36551]
[1725215676510,0.170481,58658.0,58654.0,0.19502]
[1725215676961,0.170481,58658.0,58654.0,0.365511]
[1725215677184,0.170481,58658.0,58654.0,0.19502]
[1725215677437,0.02675172,58658.0,58655.0,0.170488]
[1725215677678,0.12675172,58658.0,58654.0,0.36551]
[1725215678148,0.170485,58656.0,58654.0,0.19502]
[1725215678385,0.170485,58657.0,58654.0,0.19502]
[1725215678625,0.85584501,58655.0,58654.0,0.00902]
[1725215678832,1.19682101,58655.0,58654.0,0.00902]
[1725215679047,1.29682101,58655.0,58654.0,0.00902]
[1725215682420,1.86509701,58655.0,58654.0,0.00902]
[1725215683874,1.67079701,58655.0,58654.0,0.00902]
[1725215684102,1.66079701,58655.0,58654.0,0.00902]
[1725215684332,1.31982101,58655.0,58654.0,0.00902]
[1725215685514,1.29682101,58655.0,58654.0,0.00902]
[1725215686227,0.98260136,58655.0,58654.0,0.00902]
[1725215687376,1.32357736,58655.0,58654.0,0.00902]
[1725215687852,1.45307736,58655.0,58654.0,0.00902]
[1725215688332,1.88685336,58655.0,58654.0,0.00902]
[1725215688574,2.056224,58655.0,58654.0,0.00902]
[1725215689143,2.199432,58655.0,58654.0,0.00902]
[1725215689363,2.056224,58655.0,58654.0,0.00902]
[1725215690086,2.26598,58655.0,58654.0,0.00902]
[1725215690523,2.056224,58655.0,58654.0,0.00902]
[1725215691676,1.88767236,58655.0,58654.0,0.00902]
[1725215692847,1.86091601,58655.0,58654.0,0.00902]
[1725215693528,1.66661601,58655.0,58654.0,0.00902]
[1725215694002,1.79154301,58655.0,58654.0,0.00902]
[1725215696317,1.81830231,58655.0,58654.0,0.00902]
[1725215696876,1.69337531,58655.0,58654.0,0.00902]
[1725215700639,1.69337531,58655.0,58654.0,0.09552]
[1725215700640,1.32439931,58655.0,58654.0,0.09552]
[1725215700861,1.32439931,58655.0,58654.0,0.00902]
[1725215701754,1.66661601,58655.0,58654.0,0.00902]
[1725215701975,2.01507761,58655.0,58654.0,0.00902]
[1725215702192,3.09846961,58655.0,58654.0,0.00902]
[1725215702424,2.66396561,58655.0,58654.0,0.00902]
[1725215703563,2.19350661,58655.0,58654.0,0.00902]
[1725215704218,1.85541601,58655.0,58654.0,0.00902]
[1725215704909,2.03521601,58655.0,58654.0,0.00902]
[1725215705121,2.21546701,58655.0,58654.0,0.00902]
[1725215705342,1.85341601,58655.0,58654.0,0.00902]
[1725215705575,1.85141601,58655.0,58654.0,0.00902]
[1725215705815,2.01996765,58655.0,58654.0,0.00902]
[1725215706054,1.85141601,58655.0,58654.0,0.00902]
[1725215706496,1.85341601,58655.0,58654.0,0.00902]
[1725215706715,1.85341601,58655.0,58635.0,0.0865]
[1725215706716,1.724403,58647.0,58632.0,0.50540786]
[1725215706941,2.90142664,58647.0,58632.0,0.50540786]
[1725215707180,3.02442664,58647.0,58632.0,0.50540786]
[1725215707817,2.802125,58647.0,58632.0,0.50540786]
[1725215708052,2.480183,58647.0,58632.0,0.50540786]
[1725215708780,2.480183,58647.0,58631.0,0.1]
[1725215709017,2.5069465,58647.0,58631.0,0.1]
[1725215709264,2.4864555,58647.0,58631.0,0.1]
[1725215709704,2.5683555,58647.0,58631.0,0.0004]
[1725215709926,2.55710714,58647.0,58631.0,0.0004]
[1725215710384,2.55510714,58647.0,58631.0,0.0004]
[1725215710886,2.56010714,58647.0,58631.0,0.0004]
[1725215711114,2.2171895,58647.0,58631.0,0.0004]
[1725215711334,2.2245895,58647.0,58631.0,0.0004]
[1725215711776,2.0353895,58647.0,58631.0,0.0004]
[1725215712489,1.6943665,58647.0,58639.0,0.0996]
[1725215712919,1.667603,58647.0,58639.0,0.0996]
[1725215713128,1.84115464,58647.0,58639.0,0.0996]
[1725215713554,2.31907764,58647.0,58632.0,0.1098]
[1725215714402,2.31907764,58647.0,58631.0,0.0004]
[1725215714403,0.007,58639.0,58631.0,0.0004]
[1725215714614,0.54500801,58639.0,58631.0,0.0004]
[1725215714917,2.40983181,58639.0,58631.0,0.0004]
[1725215715144,2.13464781,58639.0,58631.0,0.0004]
[1725215715363,2.47571681,58639.0,58631.0,0.0004]
[1725215715811,2.58851681,58639.0,58631.0,0.0004]
[1725215716033,1.541995,58632.0,58631.0,0.0004]
[1725215716258,1.664995,58632.0,58631.0,0.0004]
[1725215716704,1.662995,58632.0,58631.0,0.0004]
[1725215716924,1.662995,58632.0,58613.0,0.0812]
[1725215716925,0.1078,58631.0,58607.0,0.191]
[1725215717157,1.540521,58612.0,58607.0,0.191]
[1725215717393,1.194518,58601.0,58600.0,0.0812]
[1725215717611,1.540809,58601.0,58600.0,0.0812]
[1725215717834,1.640809,58601.0,58600.0,0.0812]
[1725215718067,1.663809,58601.0,58600.0,0.0812]
[1725215718773,1.69059168,58601.0,58600.0,0.0812]
[1725215719011,1.69059168,58601.0,58598.0,0.1098]
[1725215719012,1.194557,58599.0,58598.0,0.1098]
[1725215719236,1.194557,58599.0,58595.0,0.009009]
[1725215719237,0.51198,58596.0,58595.0,0.009009]
[1725215719455,1.29462,58596.0,58595.0,0.009009]
[1725215719666,1.31762,58596.0,58595.0,0.009009]
[1725215722074,1.31762,58596.0,58595.0,0.004009]
[1725215722768,1.32262,58596.0,58595.0,0.004009]
[1725215723002,1.977408,58596.0,58595.0,0.004009]
[1725215723425,1.953067,58596.0,58595.0,0.004009]
[1725215724085,0.853415,58588.0,58587.0,0.008418]
[1725215724300,0.976415,58588.0,58587.0,0.008418]
[1725215724512,1.317781,58588.0,58587.0,0.008418]
[1725215725585,0.976415,58588.0,58587.0,0.008418]
[1725215726659,0.953415,58588.0,58587.0,0.117618]
[1725215726873,0.612049,58588.0,58587.0,0.201018]
[1725215727817,0.29746819,58588.0,58587.0,0.201018]
[1725215728062,0.02678519,58588.0,58587.0,0.201018]
[1725215728287,0.170673,58592.0,58589.0,0.0834]
[1725215728511,0.170674,58591.0,58590.0,0.1092]
[1725215728725,0.853372,58591.0,58590.0,0.1092]
[1725215728938,0.512023,58591.0,58590.0,0.1092]
[1725215729151,0.170674,58591.0,58590.0,0.1092]
[1725215729371,0.17067,58593.0,58590.0,0.1092]
[1725215729583,0.02678274,58591.0,58590.0,0.1092]
[1725215730269,0.02678274,58591.0,58590.0,0.1172]
[1725215730270,0.19845674,58591.0,58590.0,0.1172]
[1725215730487,0.29945674,58591.0,58590.0,0.1232]
[1725215731171,0.29845674,58591.0,58590.0,0.1152]
[1725215731431,0.12678274,58591.0,58590.0,0.1092]
[1725215731684,0.12778274,58591.0,58590.0,0.12514607]
[1725215732174,0.12778274,58591.0,58590.0,0.37922307]
[1725215732175,0.001,58591.0,58590.0,0.37922307]
[1725215732667,0.002,58591.0,58590.0,0.38922307]
[1725215733134,0.170652,58599.0,58591.0,0.1092]
[1725215733389,0.341196,58618.0,58593.0,0.0831]
[1725215733649,0.17062,58610.0,58603.0,0.0831]
[1725215733843,0.170617,58611.0,58603.0,0.0831]
[1725215734102,0.170617,58611.0,58602.0,0.00341246]
[1725215734103,0.170612,58613.0,58604.0,0.09105973]
[1725215734355,0.170614,58612.0,58604.0,0.09105973]
[1725215734617,0.341217,58614.0,58604.0,0.09105973]
[1725215734618,0.170608,58614.0,58605.0,0.00341245]
[1725215734873,0.170608,58614.0,58604.0,0.09105973]
[1725215734874,0.341183,58620.0,58609.0,0.170621]
[1725215735128,0.341183,58620.0,58610.0,0.0821]
[1725215735377,0.341183,58620.0,58610.0,0.0900561]
[1725215735602,0.00082,58632.0,58621.0,0.170585]
[1725215735842,0.00082,58632.0,58617.0,0.36587474]
[1725215735843,0.341116,58631.0,58617.0,0.36587474]
[1725215736075,0.170576,58625.0,58622.0,0.0079509]
[1725215736305,0.170576,58625.0,58616.0,0.170601]
[1725215736522,0.170576,58625.0,58617.0,0.1003]
[1725215736742,0.170576,58625.0,58617.0,0.10825243]
[1725215736974,0.1,58624.0,58617.0,0.10825243]
[1725215737204,0.00082,58620.0,58617.0,0.10825243]
[1725215737887,0.00082,58620.0,58617.0,0.12225243]
[1725215738106,0.00082,58620.0,58618.0,0.0831]
[1725215738555,0.00082,58620.0,58619.0,0.00795182]
[1725215739495,0.17141,58620.0,58619.0,0.00795182]
[1725215739929,0.17141,58620.0,58618.0,0.0831]
[1725215740193,0.170593,58619.0,58618.0,0.0831]
[1725215740421,0.952965,58619.0,58618.0,0.0831]
[1725215740646,0.952965,58619.0,58617.0,0.1143]
[1725215740647,0.511788,58618.0,58617.0,0.014]
[1725215740868,1.294172,58618.0,58617.0,0.014]
[1725215741088,0.853037,58614.0,58613.0,0.1089]
[1725215741774,0.953037,58614.0,58613.0,0.11685238]
[1725215742225,0.953037,58614.0,58613.0,0.1089]
[1725215742226,1.294252,58614.0,58613.0,0.1089]
[1725215742454,0.170619,58610.0,58609.0,0.1089]
[1725215742698,0.953095,58610.0,58609.0,0.1089]
[1725215742926,0.953095,58610.0,58609.0,0.11685475]
[1725215743146,0.953095,58610.0,58609.0,0.1089]
[1725215743602,0.170633,58605.0,58604.0,0.1089]
[1725215743832,0.1,58605.0,58604.0,0.1089]
[1725215744516,0.270633,58605.0,58604.0,0.1089]
[1725215744740,0.6119,58605.0,58604.0,0.1089]
[1725215744958,0.953167,58605.0,58604.0,0.1089]
[1725215746119,0.953167,58605.0,58604.0,0.1189]
[1725215746378,1.35728102,58605.0,58604.0,0.019]
[1725215747324,1.38405916,58605.0,58604.0,0.019]
[1725215750046,0.853327,58594.0,58593.0,0.1089]
[1725215750539,0.953327,58594.0,58593.0,0.1089]
[1725215750764,0.63877641,58594.0,58593.0,0.1089]
[1725215752345,0.98010741,58594.0,58593.0,0.1149]
[1725215752789,0.63977641,58594.0,58593.0,0.1179]
[1725215752978,0.612996,58594.0,58593.0,0.1259]
[1725215753285,0.101,58594.0,58593.0,0.14665]
[1725215753501,0.101,58594.0,58593.0,0.1259]
[1725215753716,0.171665,58594.0,58593.0,0.13411695]
[1725215753935,0.612996,58594.0,58593.0,0.13411695]
[1725215754162,0.611996,58594.0,58593.0,0.12511695]
[1725215754389,0.954327,58594.0,58593.0,0.1189]
[1725215755718,0.954327,58594.0,58593.0,0.1279]
[1725215756146,0.954327,58594.0,58593.0,0.019]
[1725215756591,1.34101515,58594.0,58593.0,0.019]
[1725215757097,1.295658,58594.0,58593.0,0.019]
[1725215757316,0.98110993,58594.0,58593.0,0.019]
[1725215758659,0.63977893,58594.0,58593.0,0.019]
[1725215759316,0.12778293,58594.0,58593.0,0.019]
[1725215759534,0.19844793,58594.0,58593.0,0.1245]
[1725215759750,0.12778293,58594.0,58593.0,0.13272036]
[1725215760414,0.12778293,58594.0,58593.0,0.2325924]
[1725215760667,0.02778293,58594.0,58593.0,0.90079246]
[1725215760893,0.02778293,58594.0,58593.0,0.54618342]
[1725215761367,0.02778293,58594.0,58593.0,0.88752042]
[1725215761604,0.02778293,58594.0,58593.0,1.57019442]
[1725215761605,0.001,58594.0,58593.0,1.57019442]
[1725215761831,0.02677737,58603.0,58601.0,0.0866]
[1725215762266,0.02677737,58603.0,58602.0,0.00821762]
[1725215762729,0.02677737,58603.0,58602.0,0.17885962]
[1725215762973,0.342062,58610.0,58602.0,0.17885962]
[1725215762974,0.00082,58610.0,58605.0,0.341264]
[1725215763217,0.00082,58610.0,58609.0,0.170622]
[1725215763444,0.00082,58610.0,58609.0,0.703966]
[1725215763689,0.00082,58610.0,58609.0,0.71217866]
[1725215763894,0.00082,58610.0,58609.0,1.17438613]
[1725215764113,0.00082,58610.0,58609.0,0.83314213]
[1725215764340,0.170609,58614.0,58609.0,0.20031266]
[1725215764821,0.1706,58617.0,58609.0,0.20031266]
[1725215764825,0.170602,58616.0,58610.0,0.170618]
[1725215765081,0.170602,58616.0,58610.0,0.19064927]
[1725215765301,0.170588,58621.0,58613.0,0.170608]
[1725215765550,0.341158,58624.0,58614.0,0.1055]
[1725215765551,0.170591,58620.0,58614.0,0.1055]
[1725215765792,0.170593,58619.0,58615.0,0.08717589]
[1725215766259,0.341152,58625.0,58616.0,0.17881144]
[1725215766478,0.170584,58623.0,58617.0,0.1055]
[1725215766693,0.1,58622.0,58618.0,0.13936824]
[1725215766922,0.1,58622.0,58618.0,0.14757807]
[1725215767148,0.852965,58619.0,58618.0,0.00820983]
[1725215767385,1.310851,58619.0,58618.0,0.00820983]
[1725215767615,1.310851,58619.0,58614.0,0.012]
[1725215767616,1.199231,58615.0,58614.0,0.012]
[1725215767840,2.019031,58615.0,58614.0,0.012]
[1725215768072,1.74354,58615.0,58614.0,0.012]
[1725215768293,0.170651,58599.0,58598.0,0.1055]
[1725215768539,0.511953,58599.0,58598.0,0.1055]
[1725215768757,0.511953,58599.0,58598.0,0.01068565]
[1725215768997,0.511971,58597.0,58596.0,0.0866]
[1725215769221,0.511971,58597.0,58593.0,0.0008998]
[1725215769222,0.1,58597.0,58593.0,0.0008998]
[1725215769443,0.853327,58594.0,58593.0,0.0008998]
[1725215770588,1.294658,58594.0,58593.0,0.0068998]
[1725215772002,1.294658,58594.0,58593.0,0.0008998]
[1725215772244,1.294658,58594.0,58593.0,0.0108998]
[1725215772539,1.294658,58594.0,58593.0,0.0198998]
[1725215772808,1.294658,58594.0,58593.0,0.0098998]
[1725215773029,1.294658,58594.0,58593.0,0.0148998]
[1725215773255,1.294658,58594.0,58593.0,0.0058998]
[1725215773474,1.294658,58594.0,58593.0,0.0088998]
[1725215776610,0.6387795,58594.0,58593.0,0.0088998]
[1725215776852,0.6387795,58594.0,58593.0,0.0931998]
[1725215777100,0.9801105,58594.0,58593.0,0.0931998]
[1725215777346,1.3214415,58594.0,58593.0,0.01959142]
[1725215777800,1.5159415,58594.0,58593.0,0.0088998]
[1725215778044,1.3214415,58594.0,58593.0,0.0088998]
[1725215778987,1.882485,58589.0,58588.0,0.000902]
[1725215779209,3.228533,58589.0,58588.0,0.000902]
[1725215779440,3.1013,58589.0,58588.0,0.000902]
[1725215779662,2.250036,58589.0,58588.0,0.000902]
[1725215779951,2.41858764,58589.0,58588.0,0.000902]
[1725215780719,2.41858764,58589.0,58579.0,0.0105852]
[1725215780720,1.658358,58580.0,58579.0,0.0105852]
[1725215780942,1.781358,58580.0,58579.0,0.0105852]
[1725215781635,1.80814976,58580.0,58579.0,0.0105852]
[1725215782111,1.68614976,58580.0,58579.0,0.0105852]
[1725215782345,1.8547014,58580.0,58579.0,0.0115852]
[1725215782612,1.69414976,58580.0,58579.0,0.0115852]
[1725215782827,1.68614976,58580.0,58579.0,0.0105852]
[1725215783052,1.764558,58580.0,58579.0,0.0105852]
[1725215783317,2.973909,58580.0,58579.0,0.0105852]
[1725215783551,3.14246064,58580.0,58579.0,0.0105852]
[1725215784010,3.14546064,58580.0,58579.0,0.0105852]
[1725215784482,3.14446064,58580.0,58579.0,0.0105852]
[1725215784698,3.14946064,58580.0,58579.0,0.0115852]
[1725215784923,2.461626,58580.0,58579.0,0.0115852]
[1725215785606,2.456626,58580.0,58579.0,0.0115852]
[1725215785827,2.449626,58580.0,58579.0,0.0105852]
[1725215786069,2.48642017,58580.0,58579.0,0.0115852]
[1725215786339,2.64497181,58580.0,58579.0,0.0105852]
[1725215786575,2.65497181,58580.0,58579.0,0.0115852]
[1725215786788,2.65297181,58580.0,58579.0,0.0115852]
[1725215787001,2.66297181,58580.0,58579.0,0.0125852]
[1725215787455,2.65297181,58580.0,58579.0,0.0115852]
[1725215787725,2.65297181,58580.0,58579.0,0.012485]
[1725215787966,2.66597181,58580.0,58579.0,0.013485]
[1725215788202,2.49742017,58580.0,58579.0,0.013485]
[1725215788684,2.70525517,58580.0,58579.0,0.013485]
[1725215788906,2.70725517,58580.0,58579.0,0.013485]
[1725215789138,2.70525517,58580.0,58579.0,0.013485]
[1725215789358,2.30562217,58580.0,58579.0,0.013485]
[1725215790045,2.47417381,58580.0,58579.0,0.013485]
[1725215790304,2.47617381,58580.0,58579.0,0.013485]
[1725215790543,2.47417381,58580.0,58579.0,0.013485]
[1725215790798,2.30562217,58580.0,58579.0,0.013485]
[1725215791031,2.16376517,58580.0,58579.0,0.013485]
[1725215791261,2.17725017,58580.0,58579.0,0.013485]
[1725215791689,2.17925017,58580.0,58579.0,0.013485]
[1725215791957,3.31464448,58580.0,58579.0,0.013485]
[1725215792418,2.52188584,58580.0,58579.0,0.013485]
[1725215792633,2.43990684,58580.0,58579.0,0.013485]
[1725215792851,2.30345767,58580.0,58579.0,0.013485]
[1725215793512,2.17027467,58580.0,58579.0,0.013485]
[1725215793732,2.60279167,58580.0,58579.0,0.013485]
[1725215794174,2.77134331,58580.0,58579.0,0.013485]
[1725215795327,2.66833631,58580.0,58579.0,0.013485]
[1725215795794,2.57888131,58580.0,58579.0,0.013485]
[1725215796475,2.57888131,58580.0,58571.0,0.0121309]
[1725215796476,1.892997,58573.0,58571.0,0.0121309]
[1725215796759,2.015997,58573.0,58571.0,0.0121309]
[1725215797288,2.18454864,58573.0,58571.0,0.0121309]
[1725215797545,2.37614864,58573.0,58571.0,0.0121309]
[1725215797770,3.27660164,58573.0,58571.0,0.0121309]
[1725215798076,2.005997,58573.0,58571.0,0.0121309]
[1725215798255,1.663543,58573.0,58571.0,0.0121309]
[1725215798478,1.668543,58573.0,58571.0,0.0121309]
[1725215798706,2.024997,58573.0,58571.0,0.0121309]
[1725215798957,2.19354864,58573.0,58571.0,0.0121309]
[1725215799210,1.55157,58572.0,58571.0,0.0121309]
[1725215799461,3.499387,58572.0,58571.0,0.0121309]
[1725215799713,3.501387,58572.0,58571.0,0.0121309]
[1725215799964,1.195435,58556.0,58555.0,0.1041]
[1725215800235,1.195435,58556.0,58550.0,0.1041]
[1725215800236,0.85394,58552.0,58550.0,0.1041]
[1725215800488,1.318516,58552.0,58550.0,0.1041]
[1725215800738,1.660092,58552.0,58551.0,0.01112892]
[1725215800981,1.660092,58552.0,58551.0,0.0004]
[1725215801442,1.295516,58552.0,58551.0,0.0004]
[1725215802437,0.95394,58552.0,58551.0,0.0004]
[1725215802698,0.95394,58552.0,58551.0,0.1849]